fUSD/lending_fUSD_20250629
["ID","MTS","AMOUNT","RATE_DAILY","PERIOD"]
[368512820,1751194252038,-490.0,0.00027397,3]
[368512821,1751194252048,-1184.84,0.00027397,3]
[368512822,1751194252057,-11015.29,0.00027397,3]
[368512823,1751194252067,-490.0,0.00027397,3]
[368512824,1751194252076,-490.0,0.00027397,3]
[368512825,1751194252086,-490.0,0.00027397,3]
[368512826,1751194252096,-490.0,0.00027397,3]
[368512827,1751194252105,-1252.49,0.00027397,3]
[368512828,1751194252114,-2480.54,0.00027397,3]
[368512829,1751194252125,-990.59,0.00027397,3]
[368512830,1751194252135,-490.0,0.00027397,3]
[368512831,1751194252145,-490.0,0.00027397,3]
[368512832,1751194252155,-1167.89,0.00027397,3]
[368512833,1751194252164,-2199.22,0.00027397,3]
[368512834,1751194252174,-490.0,0.00027397,3]
[368512835,1751194252183,-490.0,0.00027397,3]
[368512836,1751194252193,-652.43,0.00027397,3]
[368512837,1751194252203,-2658.27,0.00027397,3]
[368512838,1751194252212,-490.0,0.00027397,3]
[368512839,1751194252221,-490.0,0.00027397,3]
[368512840,1751194252231,-490.0,0.00027397,3]
[368512841,1751194252241,-490.13,0.00027397,3]
[368512842,1751194252251,-521.1,0.00027397,3]
[368512843,1751194252261,-490.0,0.00027397,2]
[368512844,1751194252270,-490.0,0.00027397,3]
[368512845,1751194252279,-2616.67,0.00027397,3]
[368512846,1751194252291,-431.942577,0.00027397,3]
[368512847,1751194252300,-424.113485,0.00027397,3]
[368512848,1751194252310,-490.34972773,0.00027397,2]
[368512849,1751194252320,-490.0,0.00027397,3]
[368512850,1751194252329,-3083.1,0.00027397,3]
[368512851,1751194252339,-2246.22,0.00027397,3]
[368512852,1751194252349,-490.0,0.00027397,3]
[368512853,1751194252359,-600.16,0.00027397,3]
[368512854,1751194252368,-1366.99,0.00027397,3]
[368512855,1751194252378,-846.78,0.00027397,3]
[368512856,1751194252387,-1602.03,0.00027397,3]
[368512857,1751194252396,-490.0,0.00027397,3]
[368512858,1751194252406,-491.75464713,0.00027397,3]
[368512859,1751194252416,-604.22,0.00027397,3]
[368512860,1751194252426,-1698.91,0.00027397,3]
[368512861,1751194252436,-1589.64,0.00027397,3]
[368512862,1751194252446,-1905.99,0.00027397,3]
[368512863,1751194252456,-490.0,0.00027397,3]
[368512864,1751194252465,-546.79,0.00027397,3]
[368512865,1751194252476,-490.0,0.00027397,3]
[368512866,1751194252485,-5253.68,0.00027397,3]
[368512867,1751194252495,-1139.22,0.00027397,3]
[368512868,1751194252505,-490.0,0.00027397,3]
[368512869,1751194252515,-580.446544,0.00027397,3]
[368512870,1751194252524,-1140.25,0.00027397,3]
[368512871,1751194252534,-2798.55,0.00027397,3]
[368512872,1751194252544,-490.0,0.00027397,3]
[368512873,1751194252554,-490.0,0.00027397,3]
[368512874,1751194252564,-1617.52,0.00027397,3]
[368512875,1751194252574,-519.66,0.00027397,3]
[368512876,1751194252583,-1421.13,0.00027397,3]
[368512877,1751194252593,-490.0,0.00027397,3]
[368512878,1751194252602,-924.39,0.00027397,3]
[368512879,1751194252612,-490.0,0.00027397,3]
[368512880,1751194252622,-3246.95,0.00027397,3]
[368512881,1751194252632,-5131.41,0.00027397,3]
[368512882,1751194252642,-1691.2,0.00027397,3]
[368512883,1751194252653,-490.0,0.00027397,3]
[368512884,1751194252663,-552.29986578,0.00027397,3]
[368512885,1751194252673,-490.0,0.00027397,3]
[368512886,1751194252751,-490.0,0.00027397,3]
[368512887,1751194252761,-500.0,0.00027397,3]
[368512888,1751194252770,-1558.36,0.00027397,3]
[368512889,1751194252780,-500.0,0.00027397,3]
[368512890,1751194252790,-500.283145,0.00027397,3]
[368512891,1751194252801,-500.0,0.00027397,3]
[368512892,1751194252811,-992.92,0.00027397,3]
[368512893,1751194252821,-500.0,0.00027397,3]
[368512894,1751194252831,-490.0,0.00027397,3]
[368512895,1751194252841,-500.0,0.00027397,3]
[368512896,1751194252852,-490.0,0.00027397,3]
[368512897,1751194252862,-490.0,0.00027397,3]
[368512898,1751194252872,-494.70838766,0.00027397,3]
[368512899,1751194252882,-1147.15,0.00027397,3]
[368512900,1751194252892,-628.53,0.00027397,3]
[368512901,1751194252901,-300.0,0.00027397,2]
[368512902,1751194252912,-490.0,0.00027397,3]
[368512903,1751194252922,-851.3,0.00027397,3]
[368512904,1751194252931,-490.0,0.00027397,3]
[368512905,1751194252942,-490.0,0.00027397,3]
[368512906,1751194252951,-490.0,0.00027397,3]
[368512907,1751194252963,-573.82,0.00027397,3]
[368512908,1751194252974,-500.0,0.00027397,3]
[368512909,1751194252984,-490.0,0.00027397,3]
[368512910,1751194252993,-490.0,0.00027397,3]
[368512911,1751194253003,-500.0,0.00027397,3]
[368512912,1751194253013,-500.0,0.00027397,3]
[368512913,1751194253026,-500.0,0.00027397,3]
[368512914,1751194253037,-1928.26,0.00027397,3]
[368512915,1751194253047,-500.0,0.00027397,3]
[368512916,1751194253057,-551.905913,0.00027397,3]
[368512917,1751194253067,-500.0,0.00027397,3]
[368512918,1751194253077,-500.0,0.00027397,3]
[368512919,1751194253086,-490.0,0.00027397,3]
[368512920,1751194253095,-1849.85,0.00027397,3]
[368512921,1751194253105,-500.0,0.00027397,3]
[368512922,1751194253114,-490.0,0.00027397,3]
[368512923,1751194253124,-500.0,0.00027397,3]
[368512924,1751194253134,-490.0,0.00027397,3]
[368512925,1751194253143,-500.0,0.00027397,3]
[368512926,1751194253154,-614.79033617,0.00027397,3]
[368512927,1751194253165,-891.78,0.00027397,2]
[368512928,1751194253175,-150.02,0.00027397,2]
[368512929,1751194253184,-201.37,0.00027397,80]
[368512930,1751194253194,-835.62347362,0.000274,3]
[368512931,1751194253203,-8289.6815559,0.00027408,2]
[368512932,1751194253213,-168.0,0.00027433,2]
[368512933,1751194253223,-234.0,0.00027448,2]
[368512934,1751194253232,-8596.39977347,0.00027463,2]
[368512935,1751194253243,-8914.46656509,0.00027518,2]
[368512936,1751194253253,-9244.301828,0.00027573,2]
[368512937,1751194253262,-9586.34099563,0.00027628,2]
[368512938,1751194253271,-1859.75526176,0.00027659,17]
[368512939,1751194253280,-490.0,0.00027669,3]
[368512940,1751194253289,-490.0,0.00027669,3]
[368512941,1751194253298,-490.0,0.00027669,3]
[368512942,1751194253307,-490.0,0.00027669,3]
[368512943,1751194253316,-369.50014881,0.00027669,3]
[368512944,1751194253325,-478.63662804,0.00027669,3]
[368512945,1751194253334,-492.28114037,0.00027669,3]
[368512946,1751194253343,-701.25,0.00027669,3]
[368512947,1751194253352,-964.67,0.00027669,3]
[368512948,1751194253362,-834.71,0.00027669,3]
[368512949,1751194253371,-492.63920113,0.00027669,3]
[368512950,1751194253380,-1226.58,0.00027669,3]
[368512951,1751194253389,-304.0260154,0.00027669,3]
[368512952,1751194253398,-490.0,0.00027669,3]
[368512953,1751194253407,-1509.58,0.00027669,3]
[368512954,1751194253416,-490.0,0.00027669,3]
[368512955,1751194253425,-492.59881266,0.00027669,3]
[368512956,1751194253435,-490.0,0.00027669,3]
[368512957,1751194253444,-490.0,0.00027669,3]
[368512958,1751194253453,-490.0,0.00027669,3]
[368512959,1751194253463,-1004.2,0.00027669,3]
[368512960,1751194253473,-490.0,0.00027669,3]
[368512961,1751194253482,-490.0,0.00027669,3]
[368512962,1751194253490,-490.0,0.00027669,3]
[368512963,1751194253500,-1273.37,0.00027669,3]
[368512964,1751194253509,-239.94016677,0.00027669,3]
[368512965,1751194253518,-490.0,0.00027669,3]
[368512966,1751194253527,-1282.38,0.00027669,3]
[368512967,1751194253536,-571.67116464,0.00027669,3]
[368512968,1751194253545,-838.34,0.00027669,3]
[368512969,1751194253554,-490.0,0.00027669,3]
[368512970,1751194253564,-1305.15,0.00027669,3]
[368512971,1751194253573,-164.8744259,0.00027669,3]
[368512972,1751194253582,-490.0,0.00027669,3]
[368512973,1751194253592,-490.0,0.00027669,3]
[368512974,1751194253601,-490.0,0.00027669,3]
[368512975,1751194253611,-490.0,0.00027669,3]
[368512976,1751194253620,-491.12508116,0.00027669,3]
[368512977,1751194253629,-490.0,0.00027669,3]
[368512978,1751194253638,-490.0,0.00027669,3]
[368512979,1751194253648,-490.0,0.00027669,3]
[368512980,1751194253657,-425.29242756,0.00027669,3]
[368512981,1751194253667,-490.0,0.00027669,3]
[368512982,1751194253677,-490.89717172,0.00027669,3]
[368512983,1751194253686,-490.0,0.00027669,3]
[368512984,1751194253696,-936.47,0.00027669,3]
[368512985,1751194253706,-490.0,0.00027669,3]
[368512986,1751194253716,-931.86,0.00027669,3]
[368512987,1751194253726,-587.9,0.00027669,3]
[368512988,1751194253736,-490.0,0.00027669,3]
[368512989,1751194253745,-490.0,0.00027669,3]
[368512990,1751194253755,-566.58,0.00027669,3]
[368512991,1751194253765,-490.69810594,0.00027669,3]
[368512992,1751194253775,-490.0,0.00027669,3]
[368512993,1751194253785,-490.0,0.00027669,3]
[368512994,1751194253795,-490.0,0.00027669,3]
[368512995,1751194253805,-177.73153508,0.00027669,3]
[368512996,1751194253814,-490.0,0.00027669,3]
[368512997,1751194253824,-526.6,0.00027669,3]
[368512998,1751194253834,-490.0,0.00027669,3]
[368512999,1751194253843,-1109.31,0.00027669,3]
[368513000,1751194253853,-490.0,0.00027669,3]
[368513001,1751194253862,-1197.41,0.00027669,3]
[368513002,1751194253872,-643.14,0.00027669,3]
[368513003,1751194253882,-1261.79,0.00027669,3]
[368513004,1751194253891,-490.0,0.00027669,3]
[368513005,1751194253901,-1701.43,0.00027669,3]
[368513006,1751194253911,-1096.93,0.00027669,3]
[368513007,1751194253920,-527.61,0.00027669,3]
[368513008,1751194253930,-490.0,0.00027669,3]
[368513009,1751194253939,-490.0,0.00027669,3]
[368513010,1751194253949,-754.15,0.00027669,3]
[368513011,1751194253960,-300.0,0.00027669,3]
[368513012,1751194253970,-490.0,0.00027669,3]
[368513013,1751194253979,-1787.33,0.00027669,3]
[368513014,1751194253989,-2078.89,0.00027669,3]
[368513015,1751194253999,-620.67,0.00027669,3]
[368513016,1751194254009,-1393.39,0.00027669,3]
[368513017,1751194254018,-490.0,0.00027669,3]
[368513018,1751194254028,-1144.96,0.00027669,3]
[368513019,1751194254038,-1657.47,0.00027669,3]
[368513020,1751194254047,-534.8,0.00027669,3]
[368513021,1751194254057,-1096.85,0.00027669,3]
[368513022,1751194254067,-1495.26,0.00027669,3]
[368513023,1751194254077,-2028.27,0.00027669,3]
[368513024,1751194254086,-892.04,0.00027669,3]
[368513025,1751194254095,-800.8,0.00027669,3]
[368513026,1751194254105,-563.11,0.00027669,3]
[368513027,1751194254114,-803.4,0.00027669,3]
[368513028,1751194254124,-490.0,0.00027669,3]
[368513029,1751194254133,-1032.49,0.00027669,3]
[368513030,1751194254143,-818.54,0.00027669,3]
[368513031,1751194254152,-490.0,0.00027669,3]
[368513032,1751194254162,-490.0,0.00027669,3]
[368513033,1751194254171,-1748.61,0.00027669,3]
[368513034,1751194254180,-583.52,0.00027669,3]
[368513035,1751194254190,-1254.67,0.00027669,3]
[368513036,1751194254199,-1561.33,0.00027669,3]
[368513037,1751194254209,-490.0,0.00027669,3]
[368513038,1751194254218,-717.28,0.00027669,3]
[368513039,1751194254228,-1235.81,0.00027669,3]
[368513040,1751194254238,-709.31,0.00027669,3]
[368513041,1751194254247,-1584.73,0.00027669,3]
[368513042,1751194254257,-1927.49,0.00027669,3]
[368513043,1751194254266,-1391.05,0.00027669,3]
[368513044,1751194254276,-921.6,0.00027669,3]
[368513045,1751194254286,-490.0,0.00027669,3]
[368513046,1751194254295,-546.89,0.00027669,3]
[368513047,1751194254305,-1532.66,0.00027669,3]
[368513048,1751194254315,-1121.28,0.00027669,3]
[368513049,1751194254325,-1915.65,0.00027669,3]
[368513050,1751194254335,-490.0,0.00027669,3]
[368513051,1751194254344,-490.0,0.00027669,3]
[368513052,1751194254354,-490.0,0.00027669,3]
[368513053,1751194254364,-640.3,0.00027669,3]
[368513054,1751194254373,-496.11,0.00027669,3]
[368513055,1751194254383,-1207.27,0.00027669,3]
[368513056,1751194254393,-1080.57,0.00027669,3]
[368513057,1751194254402,-1626.37,0.00027669,3]
[368513058,1751194254413,-490.0,0.00027669,3]
[368513059,1751194254423,-1384.15,0.00027669,3]
[368513060,1751194254433,-627.27,0.00027669,3]
[368513061,1751194254442,-490.0,0.00027669,3]
[368513062,1751194254452,-964.86,0.00027669,3]
[368513063,1751194254462,-1224.5,0.00027669,3]
[368513064,1751194254472,-1005.99,0.00027669,3]
[368513065,1751194254481,-500.0,0.00027669,3]
[368513066,1751194254491,-1042.94,0.00027669,3]
[368513067,1751194254501,-490.0,0.00027669,3]
[368513068,1751194254510,-490.0,0.00027669,3]
[368513069,1751194254519,-490.0,0.00027669,3]
[368513070,1751194254529,-490.0,0.0002767,3]
[368513071,1751194254538,-536.15040791,0.0002767,3]
[368513072,1751194254548,-490.0,0.0002767,3]
[368513073,1751194254557,-501.53344556,0.0002767,3]
[368513074,1751194254566,-490.0,0.0002767,3]
[368513075,1751194254576,-490.0,0.0002767,3]
[368513076,1751194254586,-490.0,0.0002767,3]
[368513077,1751194254595,-490.0,0.0002767,3]
[368513078,1751194254605,-490.0,0.0002767,3]
[368513079,1751194254614,-490.0,0.0002767,3]
[368513080,1751194254624,-490.0,0.0002767,3]
[368513081,1751194254633,-490.0,0.0002767,3]
[368513082,1751194254643,-490.0,0.0002767,3]
[368513083,1751194254652,-300.0,0.0002767,3]
[368513084,1751194254662,-490.0,0.0002767,3]
[368513085,1751194254672,-490.0,0.0002767,3]
[368513086,1751194254681,-490.0,0.0002767,3]
[368513087,1751194254691,-490.0,0.0002767,3]
[368513088,1751194254701,-490.0,0.0002767,3]
[368513089,1751194254711,-490.0,0.0002767,3]
[368513090,1751194254721,-490.0,0.0002767,3]
[368513091,1751194254731,-490.0,0.0002767,3]
[368513092,1751194254740,-490.0,0.0002767,3]
[368513093,1751194254750,-490.0,0.0002767,3]
[368513094,1751194254760,-490.0,0.0002767,3]
[368513095,1751194254769,-490.0,0.0002767,3]
[368513096,1751194254780,-490.0,0.0002767,3]
[368513097,1751194254789,-490.0,0.0002767,3]
[368513098,1751194254799,-500.0,0.0002767,3]
[368513099,1751194254809,-490.0,0.0002767,3]
[368513100,1751194254820,-490.0,0.0002767,3]
[368513101,1751194254830,-490.0,0.0002767,3]
[368513102,1751194254840,-490.0,0.0002767,3]
[368513103,1751194254850,-490.0,0.0002767,3]
[368513104,1751194254859,-490.0,0.0002767,3]
[368513105,1751194254869,-490.0,0.0002767,3]
[368513106,1751194254878,-490.0,0.0002767,3]
[368513107,1751194254888,-490.0,0.0002767,3]
[368513108,1751194254897,-686.32,0.0002767,3]
[368513109,1751194254907,-490.0,0.0002767,3]
[368513110,1751194254917,-490.0,0.0002767,3]
[368513111,1751194254927,-490.0,0.0002767,3]
[368513112,1751194254937,-490.0,0.0002767,3]
[368513113,1751194254946,-690.4,0.0002767,3]
[368513114,1751194254956,-490.0,0.0002767,3]
[368513115,1751194254971,-490.0,0.0002767,3]
[368513116,1751194254981,-492.51842215,0.0002767,3]
[368513117,1751194254990,-490.0,0.0002767,3]
[368513118,1751194255000,-490.0,0.0002767,3]
[368513119,1751194255010,-490.0,0.0002767,3]
[368513120,1751194255020,-496.93275288,0.0002767,3]
[368513121,1751194255030,-513.52,0.0002767,3]
[368513122,1751194255040,-490.0,0.0002767,3]
[368513123,1751194255049,-490.0,0.0002767,3]
[368513124,1751194255059,-490.0,0.0002767,3]
[368513125,1751194255068,-412.76472942,0.0002767,3]
[368513126,1751194255078,-490.0,0.0002767,3]
[368513127,1751194255088,-490.0,0.0002767,3]
[368513128,1751194255097,-490.0,0.0002767,3]
[368513129,1751194255107,-490.0,0.0002767,3]
[368513130,1751194255116,-490.0,0.0002767,3]
[368513131,1751194255127,-490.0,0.0002767,3]
[368513132,1751194255136,-600.29,0.0002767,3]
[368513133,1751194255146,-490.0,0.0002767,3]
[368513134,1751194255155,-490.0,0.0002767,3]
[368513135,1751194255165,-490.0,0.0002767,3]
[368513136,1751194255175,-490.0,0.0002767,3]
[368513137,1751194255184,-490.0,0.0002767,3]
[368513138,1751194255193,-490.0,0.0002767,3]
[368513139,1751194255203,-490.0,0.0002767,3]
[368513140,1751194255212,-490.0,0.0002767,3]
[368513141,1751194255222,-490.0,0.0002767,3]
[368513142,1751194255232,-490.0,0.0002767,3]
[368513143,1751194255241,-490.0,0.0002767,3]
[368513144,1751194255251,-490.0,0.0002767,3]
[368513145,1751194255260,-490.0,0.0002767,3]
[368513146,1751194255270,-490.0,0.0002767,3]
[368513147,1751194255281,-490.0,0.0002767,3]
[368513148,1751194255291,-490.0,0.0002767,3]
[368513149,1751194255301,-490.0,0.0002767,3]
[368513150,1751194255311,-490.0,0.0002767,3]
[368513151,1751194255321,-490.0,0.0002767,3]
[368513152,1751194255330,-490.0,0.0002767,3]
[368513153,1751194255339,-490.0,0.0002767,3]
[368513154,1751194255349,-490.0,0.0002767,3]
[368513155,1751194255358,-490.0,0.0002767,3]
[368513156,1751194255368,-514.84458109,0.0002767,3]
[368513157,1751194255377,-298.49150822,0.0002767,3]
[368513158,1751194255387,-546.50112268,0.0002767,3]
[368513159,1751194255397,-490.0,0.0002767,3]
[368513160,1751194255406,-490.0,0.0002767,3]
[368513161,1751194255415,-490.0,0.0002767,3]
[368513162,1751194255424,-490.0,0.0002767,3]
[368513163,1751194255434,-490.0,0.0002767,3]
[368513164,1751194255444,-490.0,0.0002767,3]
[368513165,1751194255453,-490.0,0.0002767,3]
[368513166,1751194255463,-490.0,0.0002767,3]
[368513167,1751194255472,-492.71,0.0002767,3]
[368513168,1751194255483,-490.0,0.0002767,3]
[368513169,1751194255492,-492.01379949,0.0002767,3]
[368513170,1751194255501,-500.0,0.0002767,3]
[368513171,1751194255511,-490.0,0.0002767,3]
[368513172,1751194255520,-490.0,0.0002767,3]
[368513173,1751194255529,-490.0,0.0002767,3]
[368513174,1751194255539,-490.0,0.0002767,3]
[368513175,1751194255549,-154.39998068,0.00027671,2]
[368513176,1751194255558,-150.0,0.00027671,3]
[368513177,1751194255567,-490.0,0.00027671,3]
[368513178,1751194255577,-490.0,0.00027671,3]
[368513179,1751194255587,-490.0,0.00027671,3]
[368513180,1751194255597,-494.48629991,0.00027671,3]
[368513181,1751194255607,-490.0,0.00027671,3]
[368513182,1751194255616,-492.58897545,0.00027671,3]
[368513183,1751194255626,-497.65900738,0.00027671,3]
[368513184,1751194255635,-490.0,0.00027671,3]
[368513185,1751194255645,-490.0,0.00027671,3]
[368513186,1751194255655,-490.0,0.00027671,3]
[368513187,1751194255665,-226.477321,0.00027671,3]
[368513188,1751194255675,-495.30557417,0.00027671,3]
[368513189,1751194255685,-499.57820639,0.00027671,3]
[368513190,1751194255696,-576.2,0.00027671,3]
[368513191,1751194255705,-490.0,0.00027671,3]
[368513192,1751194255715,-185.13823897,0.00027671,3]
[368513193,1751194255726,-490.0,0.00027671,3]
[368513194,1751194255735,-490.0,0.00027671,3]
[368513195,1751194255746,-587.2420202,0.00027671,3]
[368513196,1751194255756,-592.05506285,0.00027671,3]
[368513197,1751194255766,-329.205099,0.00027671,3]
[368513198,1751194255777,-490.0,0.00027671,3]
[368513199,1751194255955,-490.0,0.00027671,3]
[368513200,1751194255970,-490.0,0.00027671,3]
[368513201,1751194255979,-490.0,0.00027671,3]
[368513202,1751194255989,-490.0,0.00027671,3]
[368513203,1751194255998,-465.85678256,0.00027671,3]
[368513204,1751194256009,-490.0,0.00027671,3]
[368513205,1751194256018,-490.0,0.00027671,3]
[368513206,1751194256027,-490.0,0.00027671,3]
[368513207,1751194256036,-490.0,0.00027671,3]
[368513208,1751194256045,-490.0,0.00027671,3]
[368513209,1751194256054,-490.0,0.00027671,3]
[368513210,1751194256063,-490.0,0.00027671,3]
[368513211,1751194256072,-212.13691706,0.00027671,3]
[368513212,1751194256081,-490.0,0.00027671,3]
[368513213,1751194256090,-216.71905983,0.00027671,3]
[368513214,1751194256099,-490.0,0.00027671,3]
[368513215,1751194256109,-490.0,0.00027671,3]
[368513216,1751194256118,-554.36,0.00027671,3]
[368513217,1751194256127,-215.41530898,0.00027671,3]
[368513218,1751194256137,-490.0,0.00027671,3]
[368513219,1751194256146,-494.21843921,0.00027671,3]
[368513220,1751194256155,-490.0,0.00027671,3]
[368513221,1751194256164,-490.0,0.00027671,3]
[368513222,1751194256174,-490.0,0.00027671,3]
[368513223,1751194256183,-490.0,0.00027671,3]
[368513224,1751194256193,-490.0,0.00027671,3]
[368513225,1751194256202,-632.51,0.00027671,3]
[368513226,1751194256211,-490.0,0.00027671,3]
[368513227,1751194256221,-490.0,0.00027671,3]
[368513228,1751194256230,-532.4,0.00027671,3]
[368513229,1751194256239,-490.0,0.00027671,3]
[368513230,1751194256248,-490.0,0.00027671,3]
[368513231,1751194256258,-490.0,0.00027671,3]
[368513232,1751194256267,-508.12,0.00027671,3]
[368513233,1751194256276,-490.0,0.00027671,3]
[368513234,1751194256285,-490.0,0.00027671,3]
[368513235,1751194256295,-701.73,0.00027671,3]
[368513236,1751194256304,-490.0,0.00027671,3]
[368513237,1751194256313,-490.05072835,0.00027671,3]
[368513238,1751194256322,-498.79786841,0.00027671,3]
[368513239,1751194256331,-490.0,0.00027671,3]
[368513240,1751194256340,-490.0,0.00027671,3]
[368513241,1751194256349,-490.0,0.00027671,3]
[368513242,1751194256358,-506.59884911,0.00027671,3]
[368513243,1751194256367,-490.0,0.00027671,3]
[368513244,1751194256376,-490.0,0.00027671,3]
[368513245,1751194256386,-490.0,0.00027671,3]
[368513246,1751194256395,-490.0,0.00027671,3]
[368513247,1751194256404,-490.0,0.00027671,3]
[368513248,1751194256413,-490.0,0.00027671,3]
[368513249,1751194256421,-521.92958088,0.00027671,3]
[368513250,1751194256430,-764.95,0.00027671,3]
[368513251,1751194256440,-490.0,0.00027671,3]
[368513252,1751194256450,-490.0,0.00027671,3]
[368513253,1751194256459,-490.0,0.00027671,3]
[368513254,1751194256468,-490.0,0.00027671,3]
[368513255,1751194256477,-490.0,0.00027671,3]
[368513256,1751194256486,-490.0,0.00027671,3]
[368513257,1751194256495,-490.0,0.00027671,3]
[368513258,1751194256504,-490.0,0.00027671,3]
[368513259,1751194256513,-316.19494044,0.00027671,3]
[368513260,1751194256522,-490.0,0.00027671,3]
[368513261,1751194256531,-490.0,0.00027671,3]
[368513262,1751194256540,-490.0,0.00027671,3]
[368513263,1751194256550,-490.0,0.00027671,3]
[368513264,1751194256559,-490.0,0.00027671,3]
[368513265,1751194256568,-498.23681765,0.00027671,3]
[368513266,1751194256577,-490.0,0.00027671,3]
[368513267,1751194256586,-490.0,0.00027671,3]
[368513268,1751194256595,-490.0,0.00027671,3]
[368513269,1751194256603,-953.82,0.00027671,3]
[368513270,1751194256613,-426.8628985,0.00027671,3]
[368513271,1751194256621,-490.0,0.00027671,3]
[368513272,1751194256631,-475.25069538,0.00027671,3]
[368513273,1751194256640,-490.0,0.00027671,3]
[368513274,1751194256649,-603.44,0.00027671,3]
[368513275,1751194256659,-529.75622783,0.00027671,3]
[368513276,1751194256668,-490.0,0.00027671,3]
[368513277,1751194256676,-633.93,0.00027671,3]
[368513278,1751194256686,-490.0,0.00027671,3]
[368513279,1751194256695,-490.0,0.00027671,3]
[368513280,1751194256704,-864.91,0.00027671,3]
[368513281,1751194256714,-490.0,0.00027671,3]
[368513282,1751194256723,-497.74,0.00027671,3]
[368513283,1751194256732,-490.0,0.00027671,3]
[368513284,1751194256742,-490.0,0.00027671,3]
[368513285,1751194256751,-490.0,0.00027671,3]
[368513286,1751194256761,-490.0,0.00027671,3]
[368513287,1751194256770,-490.0,0.00027671,3]
[368513288,1751194256779,-490.0,0.00027671,3]
[368513289,1751194256788,-490.0,0.00027671,3]
[368513290,1751194256798,-756.13,0.00027671,3]
[368513291,1751194256807,-490.0,0.00027671,3]
[368513292,1751194256816,-490.0,0.00027671,3]
[368513293,1751194256826,-542.44,0.00027671,3]
[368513294,1751194256835,-1332.54,0.00027671,3]
[368513295,1751194256845,-863.82,0.00027671,3]
[368513296,1751194256854,-490.0,0.00027671,3]
[368513297,1751194256863,-490.0,0.00027671,3]
[368513298,1751194256873,-1500.0,0.00027671,14]
[368513299,1751194256883,-490.0,0.00027671,3]
[368513300,1751194256892,-591.84,0.00027671,3]
[368513301,1751194256901,-490.0,0.00027671,3]
[368513302,1751194256911,-490.0,0.00027671,3]
[368513303,1751194256920,-499.83561076,0.00027671,3]
[368513304,1751194256930,-490.0,0.00027671,3]
[368513305,1751194256939,-490.0,0.00027671,3]
[368513306,1751194256949,-665.61,0.00027671,3]
[368513307,1751194256958,-769.64,0.00027671,3]
[368513308,1751194256971,-490.0,0.00027671,3]
[368513309,1751194256980,-490.0,0.00027671,3]
[368513310,1751194256989,-490.0,0.00027671,3]
[368513311,1751194256998,-555.79,0.00027671,3]
[368513312,1751194257009,-490.0,0.00027671,3]
[368513313,1751194257018,-490.0,0.00027671,3]
[368513314,1751194257027,-490.0,0.00027671,3]
[368513315,1751194257036,-627.43,0.00027671,3]
[368513316,1751194257045,-491.22,0.00027671,3]
[368513317,1751194257055,-490.0,0.00027671,3]
[368513318,1751194257064,-490.0,0.00027671,3]
[368513319,1751194257074,-490.0,0.00027671,3]